{"text_format":"3","workbook":"xlsx","n_sheets":12,"sheets":["Instruções","Cadastro de Imóveis","Cadastro de Proprietários","Cadastro de Inquilinos","Controle de Compras","Controle de Reformas","Contratos de Locação","Controle de Pagamentos","Controle de Vendas","Despesas Operacionais","Cálculos","Painel Executivo"],"not_rendered":{"charts":5,"images":6,"macros":1},"read":"whole","date_system":"1900"}

{"sheet":"Instruções","index":0,"n_rows":43,"n_cols":25,"rows_kept":43,"merged":[[9,2,9,18],[11,2,11,3],[11,4,11,5],[11,6,11,7],[11,8,11,9],[11,10,11,11],[11,12,11,13],[11,14,11,15],[11,16,11,17],[11,18,11,19],[11,20,11,21],[11,22,11,23],[11,24,11,25]]}
["http://authenticator.sapphirebusinesstech.com:8080/access/v1/validate"]
["123456789"]
["contact@sapphirebusinesstech.com",{"$nulls":4},"Any use for this file other than sample using and technical analysis without authorization is stricly prohibited and protected by copyright"]
[{"$nulls":5},"Qualquer uso desse arquivo sem autorização outro que uso de exemplo e análise técnica é extritamente proibida e protegida por direitos autorais."]
[200,{"$nulls":4},"Cualquier uso de este archivo sin autorización que no sea para fines de ejemplo o análisis técnico está estrictamente prohibido y está protegido por derechos de autor."]
[]
[{"$f":"IF(A12=\"\",0,TODAY()-A12)","v":0}]
[]
[]
[null,null,"CONTROLE DE COMPRAS, LOCAÇÕES E RENTABILIDADE DE IMÓVEIS"]
[]
[null,null,"📊 Painel",null,"📖 Instruções",null,"🏠 Imóveis",null,"👤 Proprietários",null,"👥 Inquilinos",null,"🛒 Compras",null,"🔧 Reformas",null,"📄 Contratos",null,"💰 Pagamentos",null,"🏷 Vendas",null,"📉 Despesas",null,"📈 Cálculos"]
[]
[]
[null,null,"OBJETIVO DA FERRAMENTA"]
[null,null,"Esta planilha centraliza a gestão de imóveis residenciais — compra, venda, locação, reformas, contratos, pagamentos e análise de rentabilidade (ROI, receita, lucro)."]
[]
[null,null,"FLUXO RECOMENDADO DE UTILIZAÇÃO"]
[]
[null,null,"Etapa","Ação"]
[null,null,1,"Cadastrar proprietários"]
[null,null,2,"Cadastrar imóveis"]
[null,null,3,"Cadastrar inquilinos"]
[null,null,4,"Registrar compras dos imóveis"]
[null,null,5,"Registrar reformas realizadas"]
[null,null,6,"Registrar contratos de locação"]
[null,null,7,"Registrar pagamentos mensais"]
[null,null,8,"Registrar vendas (quando aplicável)"]
[null,null,9,"Consultar relatórios e indicadores"]
[]
[]
[null,null,"REGRAS IMPORTANTES"]
[null,null,"• Não excluir linhas das tabelas (pode quebrar fórmulas de referência)."]
[null,null,"• Não alterar fórmulas existentes."]
[null,null,"• Não renomear abas (o sistema depende dos nomes atuais)."]
[null,null,"• Utilizar sempre as listas suspensas nos campos que as possuem."]
[null,null,"• Preencher a partir da linha 8 em cada tabela (linha 7 é sempre o cabeçalho)."]
[]
[]
[null,null,"PADRÕES VISUAIS"]
[null,null,"• Valores monetários no formato R$ #.##0,00 (Português Brasil)."]
[null,null,"• Datas no formato dd/mm/aaaa."]
[null,null,"• Navegação entre abas via botões na linha 4 de cada aba."]

{"sheet":"Cadastro de Imóveis","index":1,"n_rows":17,"n_cols":25,"rows_kept":17,"hidden":true,"merged":[[1,2,1,18],[3,2,3,3],[3,4,3,5],[3,6,3,7],[3,8,3,9],[3,10,3,11],[3,12,3,13],[3,14,3,15],[3,16,3,17],[3,18,3,19],[3,20,3,21],[3,22,3,23],[3,24,3,25]]}
[]
[null,null,"CADASTRO DE IMÓVEIS"]
[]
[null,null,"📊 Painel",null,"📖 Instruções",null,"🏠 Imóveis",null,"👤 Proprietários",null,"👥 Inquilinos",null,"🛒 Compras",null,"🔧 Reformas",null,"📄 Contratos",null,"💰 Pagamentos",null,"🏷 Vendas",null,"📉 Despesas",null,"📈 Cálculos"]
[]
[]
[null,null,"ID Imóvel","Nome do Imóvel","Tipo","Finalidade","Endereço","Número","Bairro","Cidade","Estado","CEP","Área (m²)","Quartos","Banheiros","Vagas","Situação","Proprietário","Data de Aquisição"]
[null,null,{"$f":"IF(D8=\"\",\"\",\"IMV-\"&TEXT(ROW()-7,\"000\"))","v":""}]
[null,null,""]
[null,null,""]
[null,null,""]
[null,null,""]
[null,null,""]
[null,null,""]
[null,null,""]
[null,null,""]
[null,null,""]

{"sheet":"Cadastro de Proprietários","index":2,"n_rows":17,"n_cols":25,"rows_kept":17,"hidden":true,"merged":[[1,2,1,10],[3,2,3,3],[3,4,3,5],[3,6,3,7],[3,8,3,9],[3,10,3,11],[3,12,3,13],[3,14,3,15],[3,16,3,17],[3,18,3,19],[3,20,3,21],[3,22,3,23],[3,24,3,25]]}
[]
[null,null,"CADASTRO DE PROPRIETÁRIOS"]
[]
[null,null,"📊 Painel",null,"📖 Instruções",null,"🏠 Imóveis",null,"👤 Proprietários",null,"👥 Inquilinos",null,"🛒 Compras",null,"🔧 Reformas",null,"📄 Contratos",null,"💰 Pagamentos",null,"🏷 Vendas",null,"📉 Despesas",null,"📈 Cálculos"]
[]
[]
[null,null,"ID Proprietário","Nome","CPF/CNPJ","Telefone","E-mail","Banco","Agência","Conta","Observações"]
[null,null,{"$f":"IF(D8=\"\",\"\",\"PRP-\"&TEXT(ROW()-7,\"000\"))","v":""}]
[null,null,""]
[null,null,""]
[null,null,""]
[null,null,""]
[null,null,""]
[null,null,""]
[null,null,""]
[null,null,""]
[null,null,""]

{"sheet":"Cadastro de Inquilinos","index":3,"n_rows":17,"n_cols":25,"rows_kept":17,"hidden":true,"merged":[[1,2,1,11],[3,2,3,3],[3,4,3,5],[3,6,3,7],[3,8,3,9],[3,10,3,11],[3,12,3,13],[3,14,3,15],[3,16,3,17],[3,18,3,19],[3,20,3,21],[3,22,3,23],[3,24,3,25]]}
[]
[null,null,"CADASTRO DE INQUILINOS"]
[]
[null,null,"📊 Painel",null,"📖 Instruções",null,"🏠 Imóveis",null,"👤 Proprietários",null,"👥 Inquilinos",null,"🛒 Compras",null,"🔧 Reformas",null,"📄 Contratos",null,"💰 Pagamentos",null,"🏷 Vendas",null,"📉 Despesas",null,"📈 Cálculos"]
[]
[]
[null,null,"ID Inquilino","Nome","CPF","Telefone","E-mail","Data de Nascimento","Profissão","Empresa","Renda Mensal","Status"]
[null,null,{"$f":"IF(D8=\"\",\"\",\"INQ-\"&TEXT(ROW()-7,\"000\"))","v":""}]
[null,null,""]
[null,null,""]
[null,null,""]
[null,null,""]
[null,null,""]
[null,null,""]
[null,null,""]
[null,null,""]
[null,null,""]

{"sheet":"Controle de Compras","index":4,"n_rows":17,"n_cols":25,"rows_kept":17,"hidden":true,"merged":[[1,2,1,12],[3,2,3,3],[3,4,3,5],[3,6,3,7],[3,8,3,9],[3,10,3,11],[3,12,3,13],[3,14,3,15],[3,16,3,17],[3,18,3,19],[3,20,3,21],[3,22,3,23],[3,24,3,25]]}
[]
[null,null,"CONTROLE DE COMPRAS DE IMÓVEIS"]
[]
[null,null,"📊 Painel",null,"📖 Instruções",null,"🏠 Imóveis",null,"👤 Proprietários",null,"👥 Inquilinos",null,"🛒 Compras",null,"🔧 Reformas",null,"📄 Contratos",null,"💰 Pagamentos",null,"🏷 Vendas",null,"📉 Despesas",null,"📈 Cálculos"]
[]
[]
[null,null,"ID Compra","Imóvel","Data da Compra","Valor de Compra","ITBI","Escritura","Registro","Taxas","Comissão","Outras Despesas","Investimento Total"]
[null,null,{"$f":"IF(D8=\"\",\"\",\"CMP-\"&TEXT(ROW()-7,\"000\"))","v":""},{"$nulls":9},{"$f":"IF(D8=\"\",\"\",SUM(F8:L8))","v":""}]
[null,null,"",{"$nulls":9},""]
[null,null,"",{"$nulls":9},""]
[null,null,"",{"$nulls":9},""]
[null,null,"",{"$nulls":9},""]
[null,null,"",{"$nulls":9},""]
[null,null,"",{"$nulls":9},""]
[null,null,"",{"$nulls":9},""]
[null,null,"",{"$nulls":9},""]
[null,null,"",{"$nulls":9},""]

{"sheet":"Controle de Reformas","index":5,"n_rows":17,"n_cols":25,"rows_kept":17,"hidden":true,"merged":[[1,2,1,9],[3,2,3,3],[3,4,3,5],[3,6,3,7],[3,8,3,9],[3,10,3,11],[3,12,3,13],[3,14,3,15],[3,16,3,17],[3,18,3,19],[3,20,3,21],[3,22,3,23],[3,24,3,25]]}
[]
[null,null,"CONTROLE DE REFORMAS"]
[]
[null,null,"📊 Painel",null,"📖 Instruções",null,"🏠 Imóveis",null,"👤 Proprietários",null,"👥 Inquilinos",null,"🛒 Compras",null,"🔧 Reformas",null,"📄 Contratos",null,"💰 Pagamentos",null,"🏷 Vendas",null,"📉 Despesas",null,"📈 Cálculos"]
[]
[]
[null,null,"ID Reforma","Imóvel","Data","Categoria","Descrição","Fornecedor","Valor","Status"]
[null,null,{"$f":"IF(D8=\"\",\"\",\"REF-\"&TEXT(ROW()-7,\"000\"))","v":""}]
[null,null,""]
[null,null,""]
[null,null,""]
[null,null,""]
[null,null,""]
[null,null,""]
[null,null,""]
[null,null,""]
[null,null,""]

{"sheet":"Contratos de Locação","index":6,"n_rows":17,"n_cols":25,"rows_kept":17,"hidden":true,"merged":[[1,2,1,13],[3,2,3,3],[3,4,3,5],[3,6,3,7],[3,8,3,9],[3,10,3,11],[3,12,3,13],[3,14,3,15],[3,16,3,17],[3,18,3,19],[3,20,3,21],[3,22,3,23],[3,24,3,25]]}
[]
[null,null,"CONTRATOS DE LOCAÇÃO"]
[]
[null,null,"📊 Painel",null,"📖 Instruções",null,"🏠 Imóveis",null,"👤 Proprietários",null,"👥 Inquilinos",null,"🛒 Compras",null,"🔧 Reformas",null,"📄 Contratos",null,"💰 Pagamentos",null,"🏷 Vendas",null,"📉 Despesas",null,"📈 Cálculos"]
[]
[]
[null,null,"ID Contrato","Imóvel","Inquilino","Data Início","Data Término","Valor Aluguel","Condomínio","IPTU","Garantia","Reajuste Anual (%)","Dia do Vencimento","Status"]
[null,null,{"$f":"IF(D8=\"\",\"\",\"CTR-\"&TEXT(ROW()-7,\"000\"))","v":""}]
[null,null,""]
[null,null,""]
[null,null,""]
[null,null,""]
[null,null,""]
[null,null,""]
[null,null,""]
[null,null,""]
[null,null,""]

{"sheet":"Controle de Pagamentos","index":7,"n_rows":17,"n_cols":25,"rows_kept":17,"hidden":true,"merged":[[1,2,1,12],[3,2,3,3],[3,4,3,5],[3,6,3,7],[3,8,3,9],[3,10,3,11],[3,12,3,13],[3,14,3,15],[3,16,3,17],[3,18,3,19],[3,20,3,21],[3,22,3,23],[3,24,3,25]]}
[]
[null,null,"CONTROLE DE PAGAMENTOS"]
[]
[null,null,"📊 Painel",null,"📖 Instruções",null,"🏠 Imóveis",null,"👤 Proprietários",null,"👥 Inquilinos",null,"🛒 Compras",null,"🔧 Reformas",null,"📄 Contratos",null,"💰 Pagamentos",null,"🏷 Vendas",null,"📉 Despesas",null,"📈 Cálculos"]
[]
[]
[null,null,"ID Pagamento","Contrato","Competência","Data Vencimento","Data Pagamento","Valor Aluguel","Multa","Juros","Desconto","Valor Recebido","Status"]
[null,null,{"$f":"IF(D8=\"\",\"\",\"PAG-\"&TEXT(ROW()-7,\"000\"))","v":""},{"$nulls":8},{"$f":"IF(D8=\"\",\"\",H8+I8+J8-K8)","v":""},{"$f":"IF(D8=\"\",\"\",IF(G8=\"\",\"Pendente\",\"Pago\"))","v":""}]
[null,null,"",{"$nulls":8},"",""]
[null,null,"",{"$nulls":8},"",""]
[null,null,"",{"$nulls":8},"",""]
[null,null,"",{"$nulls":8},"",""]
[null,null,"",{"$nulls":8},"",""]
[null,null,"",{"$nulls":8},"",""]
[null,null,"",{"$nulls":8},"",""]
[null,null,"",{"$nulls":8},"",""]
[null,null,"",{"$nulls":8},"",""]

{"sheet":"Controle de Vendas","index":8,"n_rows":17,"n_cols":25,"rows_kept":17,"hidden":true,"merged":[[1,2,1,9],[3,2,3,3],[3,4,3,5],[3,6,3,7],[3,8,3,9],[3,10,3,11],[3,12,3,13],[3,14,3,15],[3,16,3,17],[3,18,3,19],[3,20,3,21],[3,22,3,23],[3,24,3,25]]}
[]
[null,null,"CONTROLE DE VENDAS"]
[]
[null,null,"📊 Painel",null,"📖 Instruções",null,"🏠 Imóveis",null,"👤 Proprietários",null,"👥 Inquilinos",null,"🛒 Compras",null,"🔧 Reformas",null,"📄 Contratos",null,"💰 Pagamentos",null,"🏷 Vendas",null,"📉 Despesas",null,"📈 Cálculos"]
[]
[]
[null,null,"ID Venda","Imóvel","Data Venda","Valor Venda","Comissão","Impostos","Outras Despesas","Valor Líquido"]
[null,null,{"$f":"IF(D8=\"\",\"\",\"VND-\"&TEXT(ROW()-7,\"000\"))","v":""},{"$nulls":6},{"$f":"IF(D8=\"\",\"\",F8-SUM(G8:I8))","v":""}]
[null,null,"",{"$nulls":6},""]
[null,null,"",{"$nulls":6},""]
[null,null,"",{"$nulls":6},""]
[null,null,"",{"$nulls":6},""]
[null,null,"",{"$nulls":6},""]
[null,null,"",{"$nulls":6},""]
[null,null,"",{"$nulls":6},""]
[null,null,"",{"$nulls":6},""]
[null,null,"",{"$nulls":6},""]

{"sheet":"Despesas Operacionais","index":9,"n_rows":17,"n_cols":25,"rows_kept":17,"hidden":true,"merged":[[1,2,1,7],[3,2,3,3],[3,4,3,5],[3,6,3,7],[3,8,3,9],[3,10,3,11],[3,12,3,13],[3,14,3,15],[3,16,3,17],[3,18,3,19],[3,20,3,21],[3,22,3,23],[3,24,3,25]]}
[]
[null,null,"DESPESAS OPERACIONAIS"]
[]
[null,null,"📊 Painel",null,"📖 Instruções",null,"🏠 Imóveis",null,"👤 Proprietários",null,"👥 Inquilinos",null,"🛒 Compras",null,"🔧 Reformas",null,"📄 Contratos",null,"💰 Pagamentos",null,"🏷 Vendas",null,"📉 Despesas",null,"📈 Cálculos"]
[]
[]
[null,null,"ID Despesa","Data","Imóvel","Categoria","Descrição","Valor"]
[null,null,{"$f":"IF(D8=\"\",\"\",\"DSP-\"&TEXT(ROW()-7,\"000\"))","v":""}]
[null,null,""]
[null,null,""]
[null,null,""]
[null,null,""]
[null,null,""]
[null,null,""]
[null,null,""]
[null,null,""]
[null,null,""]

{"sheet":"Cálculos","index":10,"n_rows":19,"n_cols":25,"rows_kept":19,"hidden":true,"merged":[[1,2,1,15],[3,2,3,3],[3,4,3,5],[3,6,3,7],[3,8,3,9],[3,10,3,11],[3,12,3,13],[3,14,3,15],[3,16,3,17],[3,18,3,19],[3,20,3,21],[3,22,3,23],[3,24,3,25],[18,2,18,3]]}
[]
[null,null,"CÁLCULOS — INDICADORES POR IMÓVEL"]
[]
[null,null,"📊 Painel",null,"📖 Instruções",null,"🏠 Imóveis",null,"👤 Proprietários",null,"👥 Inquilinos",null,"🛒 Compras",null,"🔧 Reformas",null,"📄 Contratos",null,"💰 Pagamentos",null,"🏷 Vendas",null,"📉 Despesas",null,"📈 Cálculos"]
[]
[]
[null,null,"ID Imóvel","Imóvel","Valor de Compra","Total Reformas","Total Despesas Op.","Investimento Acumulado","Receita de Aluguel","Receita de Venda","Receita Total","Lucro Líquido","ROI (%)","Rentab. Mensal (%)","Meses Alugados","Ticket Médio Aluguel"]
[null,null,{"$f":"IFERROR(IF(INDEX(tblImoveis[Nome do Imóvel],ROW()-7)=\"\",\"\",\"IMV-\"&TEXT(ROW()-7,\"000\")),\"\")","v":""},{"$f":"IFERROR(IF(INDEX(tblImoveis[Nome do Imóvel],ROW()-7)=\"\",\"\",INDEX(tblImoveis[Nome do Imóvel],ROW()-7)),\"\")","v":""},{"$f":"IF(D8=\"\",0,SUMIFS(tblCompras[Valor de Compra],tblCompras[Imóvel],D8))","v":0},{"$f":"IF(D8=\"\",0,SUMIFS(tblReformas[Valor],tblReformas[Imóvel],D8))","v":0},{"$f":"IF(D8=\"\",0,SUMIFS(tblDespesas[Valor],tblDespesas[Imóvel],D8))","v":0},{"$f":"IF(D8=\"\",0,SUMIFS(tblCompras[Investimento Total],tblCompras[Imóvel],D8)+F8)","v":0},{"$f":"IF(D8=\"\",0,SUMPRODUCT(--(IFERROR(INDEX(tblContratos[Imóvel],MATCH(tblPagamentos[Contrato],tblContratos[ID Contrato],0)),\"\")=D8),--(tblPagamentos[Data Pagamento]<>\"\"),tblPagamentos[Valor Recebido]))","v":0},{"$f":"IF(D8=\"\",0,SUMIFS(tblVendas[Valor Líquido],tblVendas[Imóvel],D8))","v":0},{"$f":"I8+J8","v":0},{"$f":"K8-H8-G8","v":0},{"$f":"IF(H8=0,0,L8/H8)","v":0},{"$f":"IF(OR(H8=0,O8=0),0,(I8/O8)/H8)","v":0},{"$f":"IF(D8=\"\",0,SUMPRODUCT(--(IFERROR(INDEX(tblContratos[Imóvel],MATCH(tblPagamentos[Contrato],tblContratos[ID Contrato],0)),\"\")=D8),--(tblPagamentos[Data Pagamento]<>\"\")))","v":0},{"$f":"IF(O8=0,0,I8/O8)","v":0}]
[null,null,{"$f":"IFERROR(IF(INDEX(tblImoveis[Nome do Imóvel],ROW()-7)=\"\",\"\",\"IMV-\"&TEXT(ROW()-7,\"000\")),\"\")","v":""},{"$f":"IFERROR(IF(INDEX(tblImoveis[Nome do Imóvel],ROW()-7)=\"\",\"\",INDEX(tblImoveis[Nome do Imóvel],ROW()-7)),\"\")","v":""},{"$f":"IF(D9=\"\",0,SUMIFS(tblCompras[Valor de Compra],tblCompras[Imóvel],D9))","v":0},{"$f":"IF(D9=\"\",0,SUMIFS(tblReformas[Valor],tblReformas[Imóvel],D9))","v":0},{"$f":"IF(D9=\"\",0,SUMIFS(tblDespesas[Valor],tblDespesas[Imóvel],D9))","v":0},{"$f":"IF(D9=\"\",0,SUMIFS(tblCompras[Investimento Total],tblCompras[Imóvel],D9)+F9)","v":0},{"$f":"IF(D9=\"\",0,SUMPRODUCT(--(IFERROR(INDEX(tblContratos[Imóvel],MATCH(tblPagamentos[Contrato],tblContratos[ID Contrato],0)),\"\")=D9),--(tblPagamentos[Data Pagamento]<>\"\"),tblPagamentos[Valor Recebido]))","v":0},{"$f":"IF(D9=\"\",0,SUMIFS(tblVendas[Valor Líquido],tblVendas[Imóvel],D9))","v":0},0,0,0,0,{"$f":"IF(D9=\"\",0,SUMPRODUCT(--(IFERROR(INDEX(tblContratos[Imóvel],MATCH(tblPagamentos[Contrato],tblContratos[ID Contrato],0)),\"\")=D9),--(tblPagamentos[Data Pagamento]<>\"\")))","v":0},0]
[null,null,{"$f":"IFERROR(IF(INDEX(tblImoveis[Nome do Imóvel],ROW()-7)=\"\",\"\",\"IMV-\"&TEXT(ROW()-7,\"000\")),\"\")","v":""},{"$f":"IFERROR(IF(INDEX(tblImoveis[Nome do Imóvel],ROW()-7)=\"\",\"\",INDEX(tblImoveis[Nome do Imóvel],ROW()-7)),\"\")","v":""},{"$f":"IF(D10=\"\",0,SUMIFS(tblCompras[Valor de Compra],tblCompras[Imóvel],D10))","v":0},{"$f":"IF(D10=\"\",0,SUMIFS(tblReformas[Valor],tblReformas[Imóvel],D10))","v":0},{"$f":"IF(D10=\"\",0,SUMIFS(tblDespesas[Valor],tblDespesas[Imóvel],D10))","v":0},{"$f":"IF(D10=\"\",0,SUMIFS(tblCompras[Investimento Total],tblCompras[Imóvel],D10)+F10)","v":0},{"$f":"IF(D10=\"\",0,SUMPRODUCT(--(IFERROR(INDEX(tblContratos[Imóvel],MATCH(tblPagamentos[Contrato],tblContratos[ID Contrato],0)),\"\")=D10),--(tblPagamentos[Data Pagamento]<>\"\"),tblPagamentos[Valor Recebido]))","v":0},{"$f":"IF(D10=\"\",0,SUMIFS(tblVendas[Valor Líquido],tblVendas[Imóvel],D10))","v":0},0,0,0,0,{"$f":"IF(D10=\"\",0,SUMPRODUCT(--(IFERROR(INDEX(tblContratos[Imóvel],MATCH(tblPagamentos[Contrato],tblContratos[ID Contrato],0)),\"\")=D10),--(tblPagamentos[Data Pagamento]<>\"\")))","v":0},0]
[null,null,{"$f":"IFERROR(IF(INDEX(tblImoveis[Nome do Imóvel],ROW()-7)=\"\",\"\",\"IMV-\"&TEXT(ROW()-7,\"000\")),\"\")","v":""},{"$f":"IFERROR(IF(INDEX(tblImoveis[Nome do Imóvel],ROW()-7)=\"\",\"\",INDEX(tblImoveis[Nome do Imóvel],ROW()-7)),\"\")","v":""},{"$f":"IF(D11=\"\",0,SUMIFS(tblCompras[Valor de Compra],tblCompras[Imóvel],D11))","v":0},{"$f":"IF(D11=\"\",0,SUMIFS(tblReformas[Valor],tblReformas[Imóvel],D11))","v":0},{"$f":"IF(D11=\"\",0,SUMIFS(tblDespesas[Valor],tblDespesas[Imóvel],D11))","v":0},{"$f":"IF(D11=\"\",0,SUMIFS(tblCompras[Investimento Total],tblCompras[Imóvel],D11)+F11)","v":0},{"$f":"IF(D11=\"\",0,SUMPRODUCT(--(IFERROR(INDEX(tblContratos[Imóvel],MATCH(tblPagamentos[Contrato],tblContratos[ID Contrato],0)),\"\")=D11),--(tblPagamentos[Data Pagamento]<>\"\"),tblPagamentos[Valor Recebido]))","v":0},{"$f":"IF(D11=\"\",0,SUMIFS(tblVendas[Valor Líquido],tblVendas[Imóvel],D11))","v":0},0,0,0,0,{"$f":"IF(D11=\"\",0,SUMPRODUCT(--(IFERROR(INDEX(tblContratos[Imóvel],MATCH(tblPagamentos[Contrato],tblContratos[ID Contrato],0)),\"\")=D11),--(tblPagamentos[Data Pagamento]<>\"\")))","v":0},0]
[null,null,{"$f":"IFERROR(IF(INDEX(tblImoveis[Nome do Imóvel],ROW()-7)=\"\",\"\",\"IMV-\"&TEXT(ROW()-7,\"000\")),\"\")","v":""},{"$f":"IFERROR(IF(INDEX(tblImoveis[Nome do Imóvel],ROW()-7)=\"\",\"\",INDEX(tblImoveis[Nome do Imóvel],ROW()-7)),\"\")","v":""},{"$f":"IF(D12=\"\",0,SUMIFS(tblCompras[Valor de Compra],tblCompras[Imóvel],D12))","v":0},{"$f":"IF(D12=\"\",0,SUMIFS(tblReformas[Valor],tblReformas[Imóvel],D12))","v":0},{"$f":"IF(D12=\"\",0,SUMIFS(tblDespesas[Valor],tblDespesas[Imóvel],D12))","v":0},{"$f":"IF(D12=\"\",0,SUMIFS(tblCompras[Investimento Total],tblCompras[Imóvel],D12)+F12)","v":0},{"$f":"IF(D12=\"\",0,SUMPRODUCT(--(IFERROR(INDEX(tblContratos[Imóvel],MATCH(tblPagamentos[Contrato],tblContratos[ID Contrato],0)),\"\")=D12),--(tblPagamentos[Data Pagamento]<>\"\"),tblPagamentos[Valor Recebido]))","v":0},{"$f":"IF(D12=\"\",0,SUMIFS(tblVendas[Valor Líquido],tblVendas[Imóvel],D12))","v":0},0,0,0,0,{"$f":"IF(D12=\"\",0,SUMPRODUCT(--(IFERROR(INDEX(tblContratos[Imóvel],MATCH(tblPagamentos[Contrato],tblContratos[ID Contrato],0)),\"\")=D12),--(tblPagamentos[Data Pagamento]<>\"\")))","v":0},0]
[null,null,{"$f":"IFERROR(IF(INDEX(tblImoveis[Nome do Imóvel],ROW()-7)=\"\",\"\",\"IMV-\"&TEXT(ROW()-7,\"000\")),\"\")","v":""},{"$f":"IFERROR(IF(INDEX(tblImoveis[Nome do Imóvel],ROW()-7)=\"\",\"\",INDEX(tblImoveis[Nome do Imóvel],ROW()-7)),\"\")","v":""},{"$f":"IF(D13=\"\",0,SUMIFS(tblCompras[Valor de Compra],tblCompras[Imóvel],D13))","v":0},{"$f":"IF(D13=\"\",0,SUMIFS(tblReformas[Valor],tblReformas[Imóvel],D13))","v":0},{"$f":"IF(D13=\"\",0,SUMIFS(tblDespesas[Valor],tblDespesas[Imóvel],D13))","v":0},{"$f":"IF(D13=\"\",0,SUMIFS(tblCompras[Investimento Total],tblCompras[Imóvel],D13)+F13)","v":0},{"$f":"IF(D13=\"\",0,SUMPRODUCT(--(IFERROR(INDEX(tblContratos[Imóvel],MATCH(tblPagamentos[Contrato],tblContratos[ID Contrato],0)),\"\")=D13),--(tblPagamentos[Data Pagamento]<>\"\"),tblPagamentos[Valor Recebido]))","v":0},{"$f":"IF(D13=\"\",0,SUMIFS(tblVendas[Valor Líquido],tblVendas[Imóvel],D13))","v":0},0,0,0,0,{"$f":"IF(D13=\"\",0,SUMPRODUCT(--(IFERROR(INDEX(tblContratos[Imóvel],MATCH(tblPagamentos[Contrato],tblContratos[ID Contrato],0)),\"\")=D13),--(tblPagamentos[Data Pagamento]<>\"\")))","v":0},0]
[null,null,{"$f":"IFERROR(IF(INDEX(tblImoveis[Nome do Imóvel],ROW()-7)=\"\",\"\",\"IMV-\"&TEXT(ROW()-7,\"000\")),\"\")","v":""},{"$f":"IFERROR(IF(INDEX(tblImoveis[Nome do Imóvel],ROW()-7)=\"\",\"\",INDEX(tblImoveis[Nome do Imóvel],ROW()-7)),\"\")","v":""},{"$f":"IF(D14=\"\",0,SUMIFS(tblCompras[Valor de Compra],tblCompras[Imóvel],D14))","v":0},{"$f":"IF(D14=\"\",0,SUMIFS(tblReformas[Valor],tblReformas[Imóvel],D14))","v":0},{"$f":"IF(D14=\"\",0,SUMIFS(tblDespesas[Valor],tblDespesas[Imóvel],D14))","v":0},{"$f":"IF(D14=\"\",0,SUMIFS(tblCompras[Investimento Total],tblCompras[Imóvel],D14)+F14)","v":0},{"$f":"IF(D14=\"\",0,SUMPRODUCT(--(IFERROR(INDEX(tblContratos[Imóvel],MATCH(tblPagamentos[Contrato],tblContratos[ID Contrato],0)),\"\")=D14),--(tblPagamentos[Data Pagamento]<>\"\"),tblPagamentos[Valor Recebido]))","v":0},{"$f":"IF(D14=\"\",0,SUMIFS(tblVendas[Valor Líquido],tblVendas[Imóvel],D14))","v":0},0,0,0,0,{"$f":"IF(D14=\"\",0,SUMPRODUCT(--(IFERROR(INDEX(tblContratos[Imóvel],MATCH(tblPagamentos[Contrato],tblContratos[ID Contrato],0)),\"\")=D14),--(tblPagamentos[Data Pagamento]<>\"\")))","v":0},0]
[null,null,{"$f":"IFERROR(IF(INDEX(tblImoveis[Nome do Imóvel],ROW()-7)=\"\",\"\",\"IMV-\"&TEXT(ROW()-7,\"000\")),\"\")","v":""},{"$f":"IFERROR(IF(INDEX(tblImoveis[Nome do Imóvel],ROW()-7)=\"\",\"\",INDEX(tblImoveis[Nome do Imóvel],ROW()-7)),\"\")","v":""},{"$f":"IF(D15=\"\",0,SUMIFS(tblCompras[Valor de Compra],tblCompras[Imóvel],D15))","v":0},{"$f":"IF(D15=\"\",0,SUMIFS(tblReformas[Valor],tblReformas[Imóvel],D15))","v":0},{"$f":"IF(D15=\"\",0,SUMIFS(tblDespesas[Valor],tblDespesas[Imóvel],D15))","v":0},{"$f":"IF(D15=\"\",0,SUMIFS(tblCompras[Investimento Total],tblCompras[Imóvel],D15)+F15)","v":0},{"$f":"IF(D15=\"\",0,SUMPRODUCT(--(IFERROR(INDEX(tblContratos[Imóvel],MATCH(tblPagamentos[Contrato],tblContratos[ID Contrato],0)),\"\")=D15),--(tblPagamentos[Data Pagamento]<>\"\"),tblPagamentos[Valor Recebido]))","v":0},{"$f":"IF(D15=\"\",0,SUMIFS(tblVendas[Valor Líquido],tblVendas[Imóvel],D15))","v":0},0,0,0,0,{"$f":"IF(D15=\"\",0,SUMPRODUCT(--(IFERROR(INDEX(tblContratos[Imóvel],MATCH(tblPagamentos[Contrato],tblContratos[ID Contrato],0)),\"\")=D15),--(tblPagamentos[Data Pagamento]<>\"\")))","v":0},0]
[null,null,{"$f":"IFERROR(IF(INDEX(tblImoveis[Nome do Imóvel],ROW()-7)=\"\",\"\",\"IMV-\"&TEXT(ROW()-7,\"000\")),\"\")","v":""},{"$f":"IFERROR(IF(INDEX(tblImoveis[Nome do Imóvel],ROW()-7)=\"\",\"\",INDEX(tblImoveis[Nome do Imóvel],ROW()-7)),\"\")","v":""},{"$f":"IF(D16=\"\",0,SUMIFS(tblCompras[Valor de Compra],tblCompras[Imóvel],D16))","v":0},{"$f":"IF(D16=\"\",0,SUMIFS(tblReformas[Valor],tblReformas[Imóvel],D16))","v":0},{"$f":"IF(D16=\"\",0,SUMIFS(tblDespesas[Valor],tblDespesas[Imóvel],D16))","v":0},{"$f":"IF(D16=\"\",0,SUMIFS(tblCompras[Investimento Total],tblCompras[Imóvel],D16)+F16)","v":0},{"$f":"IF(D16=\"\",0,SUMPRODUCT(--(IFERROR(INDEX(tblContratos[Imóvel],MATCH(tblPagamentos[Contrato],tblContratos[ID Contrato],0)),\"\")=D16),--(tblPagamentos[Data Pagamento]<>\"\"),tblPagamentos[Valor Recebido]))","v":0},{"$f":"IF(D16=\"\",0,SUMIFS(tblVendas[Valor Líquido],tblVendas[Imóvel],D16))","v":0},0,0,0,0,{"$f":"IF(D16=\"\",0,SUMPRODUCT(--(IFERROR(INDEX(tblContratos[Imóvel],MATCH(tblPagamentos[Contrato],tblContratos[ID Contrato],0)),\"\")=D16),--(tblPagamentos[Data Pagamento]<>\"\")))","v":0},0]
[null,null,{"$f":"IFERROR(IF(INDEX(tblImoveis[Nome do Imóvel],ROW()-7)=\"\",\"\",\"IMV-\"&TEXT(ROW()-7,\"000\")),\"\")","v":""},{"$f":"IFERROR(IF(INDEX(tblImoveis[Nome do Imóvel],ROW()-7)=\"\",\"\",INDEX(tblImoveis[Nome do Imóvel],ROW()-7)),\"\")","v":""},{"$f":"IF(D17=\"\",0,SUMIFS(tblCompras[Valor de Compra],tblCompras[Imóvel],D17))","v":0},{"$f":"IF(D17=\"\",0,SUMIFS(tblReformas[Valor],tblReformas[Imóvel],D17))","v":0},{"$f":"IF(D17=\"\",0,SUMIFS(tblDespesas[Valor],tblDespesas[Imóvel],D17))","v":0},{"$f":"IF(D17=\"\",0,SUMIFS(tblCompras[Investimento Total],tblCompras[Imóvel],D17)+F17)","v":0},{"$f":"IF(D17=\"\",0,SUMPRODUCT(--(IFERROR(INDEX(tblContratos[Imóvel],MATCH(tblPagamentos[Contrato],tblContratos[ID Contrato],0)),\"\")=D17),--(tblPagamentos[Data Pagamento]<>\"\"),tblPagamentos[Valor Recebido]))","v":0},{"$f":"IF(D17=\"\",0,SUMIFS(tblVendas[Valor Líquido],tblVendas[Imóvel],D17))","v":0},0,0,0,0,{"$f":"IF(D17=\"\",0,SUMPRODUCT(--(IFERROR(INDEX(tblContratos[Imóvel],MATCH(tblPagamentos[Contrato],tblContratos[ID Contrato],0)),\"\")=D17),--(tblPagamentos[Data Pagamento]<>\"\")))","v":0},0]
[]
[null,null,"TOTAIS GERAIS",null,{"$f":"SUM(E8:E17)","v":0},0,0,0,0,0,0,0,{"$f":"IF(H19=0,0,L19/H19)","v":0},{"$f":"IFERROR(AVERAGEIF(N8:N17,\">0\"),0)","v":0},{"$f":"SUM(O8:O17)","v":0},{"$f":"IFERROR(AVERAGEIF(P8:P17,\">0\"),0)","v":0}]

{"sheet":"Painel Executivo","index":11,"n_rows":72,"n_cols":25,"rows_kept":72,"hidden":true,"merged":[[1,2,1,23],[3,2,3,3],[3,4,3,5],[3,6,3,7],[3,8,3,9],[3,10,3,11],[3,12,3,13],[3,14,3,15],[3,16,3,17],[3,18,3,19],[3,20,3,21],[3,22,3,23],[3,24,3,25],[14,4,14,8]]}
[]
[null,null,"PAINEL EXECUTIVO — VISÃO GERAL DA CARTEIRA"]
[]
[null,null,"📊 Painel",null,"📖 Instruções",null,"🏠 Imóveis",null,"👤 Proprietários",null,"👥 Inquilinos",null,"🛒 Compras",null,"🔧 Reformas",null,"📄 Contratos",null,"💰 Pagamentos",null,"🏷 Vendas",null,"📉 Despesas",null,"📈 Cálculos"]
[]
[{"$nulls":3},"KPIs PRINCIPAIS"]
[{"$nulls":3},"Total de Imóveis","Imóveis Alugados","Imóveis Vagos","Taxa de Ocupação","Contratos Ativos","Pagamentos Pendentes"]
[{"$nulls":3},{"$f":"COUNTA(tblImoveis[Nome do Imóvel])","v":0},{"$f":"COUNTIFS(tblImoveis[Situação],\"Alugado\")","v":0},{"$f":"COUNTIFS(tblImoveis[Situação],\"Vago\")","v":0},{"$f":"IFERROR(E8/D8,0)","v":{"v":0,"d":"0.0%"}},{"$f":"COUNTIFS(tblContratos[Status],\"Ativo\")","v":0},{"$f":"COUNTIFS(tblPagamentos[Status],\"Pendente\")","v":0}]
[]
[{"$nulls":3},"INDICADORES FINANCEIROS"]
[{"$nulls":3},"Investimento Total","Receita de Aluguéis","Receita de Vendas","Despesas Operacionais","Lucro Líquido Total","ROI Médio"]
[{"$nulls":3},{"$f":"Cálculos!H19","v":0},{"$f":"Cálculos!I19","v":0},{"$f":"Cálculos!J19","v":0},{"$f":"Cálculos!G19","v":0},{"$f":"Cálculos!L19","v":0},{"$f":"Cálculos!M19","v":0}]
[]
[{"$nulls":3},"BUSCA RÁPIDA POR IMÓVEL"]
[{"$nulls":3},"Selecione o Imóvel:"]
[{"$nulls":3},"Tipo","Situação","Investimento","Receita Aluguéis","Lucro Líquido","ROI"]
[{"$nulls":3},{"$f":"IFERROR(IF(E15=\"\",\"\",INDEX(tblImoveis[Tipo],MATCH(E15,tblImoveis[Nome do Imóvel],0))),\"\")","v":""},{"$f":"IFERROR(IF(E15=\"\",\"\",INDEX(tblImoveis[Situação],MATCH(E15,tblImoveis[Nome do Imóvel],0))),\"\")","v":""},{"$f":"IFERROR(IF(E15=\"\",\"\",INDEX(Cálculos!H:H,MATCH(E15,Cálculos!D:D,0))),\"\")","v":""},{"$f":"IFERROR(IF(E15=\"\",\"\",INDEX(Cálculos!I:I,MATCH(E15,Cálculos!D:D,0))),\"\")","v":""},{"$f":"IFERROR(IF(E15=\"\",\"\",INDEX(Cálculos!L:L,MATCH(E15,Cálculos!D:D,0))),\"\")","v":""},{"$f":"IFERROR(IF(E15=\"\",\"\",INDEX(Cálculos!M:M,MATCH(E15,Cálculos!D:D,0))),\"\")","v":""}]
[]
[{"$nulls":3},"GRÁFICOS"]
{"$rows_empty":38}
[{"$nulls":3},"↓ Dados auxiliares dos gráficos (não editar) ↓"]
[]
[{"$nulls":3},"Imóvel","Investimento","Receita Total","Lucro",null,"Situação","Qtd",null,"Categoria Reforma","Valor",null,"Mês","Receita Aluguel","Despesas",null,null,"Imóvel","Lucro Líquido"]
[{"$nulls":3},{"$f":"Cálculos!D8","v":""},{"$f":"Cálculos!H8","v":0},{"$f":"Cálculos!K8","v":0},{"$f":"Cálculos!L8","v":0},null,"Alugado",{"$f":"COUNTIFS(tblImoveis[Situação],\"Alugado\")","v":0},null,"Elétrica",{"$f":"SUMIFS(tblReformas[Valor],tblReformas[Categoria],\"Elétrica\")","v":0},null,{"$f":"TEXT(EDATE(TODAY(),-11),\"mmm/aa\")","v":"Sep/aa"},{"$f":"SUMPRODUCT((YEAR(tblPagamentos[Data Pagamento])=YEAR(EDATE(TODAY(),-11)))*(MONTH(tblPagamentos[Data Pagamento])=MONTH(EDATE(TODAY(),-11)))*tblPagamentos[Valor Recebido])","v":{"$error":"#VALUE!"}},{"$f":"SUMPRODUCT((YEAR(tblDespesas[Data])=YEAR(EDATE(TODAY(),-11)))*(MONTH(tblDespesas[Data])=MONTH(EDATE(TODAY(),-11)))*tblDespesas[Valor])","v":0},null,null,{"$f":"Cálculos!D8","v":""},{"$f":"Cálculos!L8","v":0}]
[{"$nulls":3},{"$f":"Cálculos!D9","v":""},{"$f":"Cálculos!H9","v":0},{"$f":"Cálculos!K9","v":0},{"$f":"Cálculos!L9","v":0},null,"Vago",{"$f":"COUNTIFS(tblImoveis[Situação],\"Vago\")","v":0},null,"Hidráulica",{"$f":"SUMIFS(tblReformas[Valor],tblReformas[Categoria],\"Hidráulica\")","v":0},null,{"$f":"TEXT(EDATE(TODAY(),-10),\"mmm/aa\")","v":"Oct/aa"},{"$f":"SUMPRODUCT((YEAR(tblPagamentos[Data Pagamento])=YEAR(EDATE(TODAY(),-10)))*(MONTH(tblPagamentos[Data Pagamento])=MONTH(EDATE(TODAY(),-10)))*tblPagamentos[Valor Recebido])","v":{"$error":"#VALUE!"}},{"$f":"SUMPRODUCT((YEAR(tblDespesas[Data])=YEAR(EDATE(TODAY(),-10)))*(MONTH(tblDespesas[Data])=MONTH(EDATE(TODAY(),-10)))*tblDespesas[Valor])","v":0},null,null,{"$f":"Cálculos!D9","v":""},{"$f":"Cálculos!L9","v":0}]
[{"$nulls":3},{"$f":"Cálculos!D10","v":""},{"$f":"Cálculos!H10","v":0},{"$f":"Cálculos!K10","v":0},{"$f":"Cálculos!L10","v":0},null,"À Venda",{"$f":"COUNTIFS(tblImoveis[Situação],\"À Venda\")","v":0},null,"Pintura",{"$f":"SUMIFS(tblReformas[Valor],tblReformas[Categoria],\"Pintura\")","v":0},null,{"$f":"TEXT(EDATE(TODAY(),-9),\"mmm/aa\")","v":"Nov/aa"},{"$f":"SUMPRODUCT((YEAR(tblPagamentos[Data Pagamento])=YEAR(EDATE(TODAY(),-9)))*(MONTH(tblPagamentos[Data Pagamento])=MONTH(EDATE(TODAY(),-9)))*tblPagamentos[Valor Recebido])","v":{"$error":"#VALUE!"}},{"$f":"SUMPRODUCT((YEAR(tblDespesas[Data])=YEAR(EDATE(TODAY(),-9)))*(MONTH(tblDespesas[Data])=MONTH(EDATE(TODAY(),-9)))*tblDespesas[Valor])","v":0},null,null,{"$f":"Cálculos!D10","v":""},{"$f":"Cálculos!L10","v":0}]
[{"$nulls":3},{"$f":"Cálculos!D11","v":""},{"$f":"Cálculos!H11","v":0},{"$f":"Cálculos!K11","v":0},{"$f":"Cálculos!L11","v":0},null,"Vendido",{"$f":"COUNTIFS(tblImoveis[Situação],\"Vendido\")","v":0},null,"Piso",{"$f":"SUMIFS(tblReformas[Valor],tblReformas[Categoria],\"Piso\")","v":0},null,{"$f":"TEXT(EDATE(TODAY(),-8),\"mmm/aa\")","v":"Dec/aa"},{"$f":"SUMPRODUCT((YEAR(tblPagamentos[Data Pagamento])=YEAR(EDATE(TODAY(),-8)))*(MONTH(tblPagamentos[Data Pagamento])=MONTH(EDATE(TODAY(),-8)))*tblPagamentos[Valor Recebido])","v":{"$error":"#VALUE!"}},{"$f":"SUMPRODUCT((YEAR(tblDespesas[Data])=YEAR(EDATE(TODAY(),-8)))*(MONTH(tblDespesas[Data])=MONTH(EDATE(TODAY(),-8)))*tblDespesas[Valor])","v":0},null,null,{"$f":"Cálculos!D11","v":""},{"$f":"Cálculos!L11","v":0}]
[{"$nulls":3},{"$f":"Cálculos!D12","v":""},{"$f":"Cálculos!H12","v":0},{"$f":"Cálculos!K12","v":0},{"$f":"Cálculos!L12","v":0},null,"Em Reforma",{"$f":"COUNTIFS(tblImoveis[Situação],\"Em Reforma\")","v":0},null,"Estrutural",{"$f":"SUMIFS(tblReformas[Valor],tblReformas[Categoria],\"Estrutural\")","v":0},null,{"$f":"TEXT(EDATE(TODAY(),-7),\"mmm/aa\")","v":"Jan/aa"},{"$f":"SUMPRODUCT((YEAR(tblPagamentos[Data Pagamento])=YEAR(EDATE(TODAY(),-7)))*(MONTH(tblPagamentos[Data Pagamento])=MONTH(EDATE(TODAY(),-7)))*tblPagamentos[Valor Recebido])","v":{"$error":"#VALUE!"}},{"$f":"SUMPRODUCT((YEAR(tblDespesas[Data])=YEAR(EDATE(TODAY(),-7)))*(MONTH(tblDespesas[Data])=MONTH(EDATE(TODAY(),-7)))*tblDespesas[Valor])","v":0},null,null,{"$f":"Cálculos!D12","v":""},{"$f":"Cálculos!L12","v":0}]
[{"$nulls":3},{"$f":"Cálculos!D13","v":""},{"$f":"Cálculos!H13","v":0},{"$f":"Cálculos!K13","v":0},{"$f":"Cálculos!L13","v":0},{"$nulls":4},"Cozinha",{"$f":"SUMIFS(tblReformas[Valor],tblReformas[Categoria],\"Cozinha\")","v":0},null,{"$f":"TEXT(EDATE(TODAY(),-6),\"mmm/aa\")","v":"Feb/aa"},{"$f":"SUMPRODUCT((YEAR(tblPagamentos[Data Pagamento])=YEAR(EDATE(TODAY(),-6)))*(MONTH(tblPagamentos[Data Pagamento])=MONTH(EDATE(TODAY(),-6)))*tblPagamentos[Valor Recebido])","v":{"$error":"#VALUE!"}},{"$f":"SUMPRODUCT((YEAR(tblDespesas[Data])=YEAR(EDATE(TODAY(),-6)))*(MONTH(tblDespesas[Data])=MONTH(EDATE(TODAY(),-6)))*tblDespesas[Valor])","v":0},null,null,{"$f":"Cálculos!D13","v":""},{"$f":"Cálculos!L13","v":0}]
[{"$nulls":3},{"$f":"Cálculos!D14","v":""},{"$f":"Cálculos!H14","v":0},{"$f":"Cálculos!K14","v":0},{"$f":"Cálculos!L14","v":0},{"$nulls":4},"Banheiro",{"$f":"SUMIFS(tblReformas[Valor],tblReformas[Categoria],\"Banheiro\")","v":0},null,{"$f":"TEXT(EDATE(TODAY(),-5),\"mmm/aa\")","v":"Mar/aa"},{"$f":"SUMPRODUCT((YEAR(tblPagamentos[Data Pagamento])=YEAR(EDATE(TODAY(),-5)))*(MONTH(tblPagamentos[Data Pagamento])=MONTH(EDATE(TODAY(),-5)))*tblPagamentos[Valor Recebido])","v":{"$error":"#VALUE!"}},{"$f":"SUMPRODUCT((YEAR(tblDespesas[Data])=YEAR(EDATE(TODAY(),-5)))*(MONTH(tblDespesas[Data])=MONTH(EDATE(TODAY(),-5)))*tblDespesas[Valor])","v":0},null,null,{"$f":"Cálculos!D14","v":""},{"$f":"Cálculos!L14","v":0}]
[{"$nulls":3},{"$f":"Cálculos!D15","v":""},{"$f":"Cálculos!H15","v":0},{"$f":"Cálculos!K15","v":0},{"$f":"Cálculos!L15","v":0},{"$nulls":4},"Outros",{"$f":"SUMIFS(tblReformas[Valor],tblReformas[Categoria],\"Outros\")","v":0},null,{"$f":"TEXT(EDATE(TODAY(),-4),\"mmm/aa\")","v":"Apr/aa"},{"$f":"SUMPRODUCT((YEAR(tblPagamentos[Data Pagamento])=YEAR(EDATE(TODAY(),-4)))*(MONTH(tblPagamentos[Data Pagamento])=MONTH(EDATE(TODAY(),-4)))*tblPagamentos[Valor Recebido])","v":{"$error":"#VALUE!"}},{"$f":"SUMPRODUCT((YEAR(tblDespesas[Data])=YEAR(EDATE(TODAY(),-4)))*(MONTH(tblDespesas[Data])=MONTH(EDATE(TODAY(),-4)))*tblDespesas[Valor])","v":0},null,null,{"$f":"Cálculos!D15","v":""},{"$f":"Cálculos!L15","v":0}]
[{"$nulls":3},{"$f":"Cálculos!D16","v":""},{"$f":"Cálculos!H16","v":0},{"$f":"Cálculos!K16","v":0},{"$f":"Cálculos!L16","v":0},{"$nulls":7},{"$f":"TEXT(EDATE(TODAY(),-3),\"mmm/aa\")","v":"May/aa"},{"$f":"SUMPRODUCT((YEAR(tblPagamentos[Data Pagamento])=YEAR(EDATE(TODAY(),-3)))*(MONTH(tblPagamentos[Data Pagamento])=MONTH(EDATE(TODAY(),-3)))*tblPagamentos[Valor Recebido])","v":{"$error":"#VALUE!"}},{"$f":"SUMPRODUCT((YEAR(tblDespesas[Data])=YEAR(EDATE(TODAY(),-3)))*(MONTH(tblDespesas[Data])=MONTH(EDATE(TODAY(),-3)))*tblDespesas[Valor])","v":0},null,null,{"$f":"Cálculos!D16","v":""},{"$f":"Cálculos!L16","v":0}]
[{"$nulls":3},{"$f":"Cálculos!D17","v":""},{"$f":"Cálculos!H17","v":0},{"$f":"Cálculos!K17","v":0},{"$f":"Cálculos!L17","v":0},{"$nulls":7},{"$f":"TEXT(EDATE(TODAY(),-2),\"mmm/aa\")","v":"Jun/aa"},{"$f":"SUMPRODUCT((YEAR(tblPagamentos[Data Pagamento])=YEAR(EDATE(TODAY(),-2)))*(MONTH(tblPagamentos[Data Pagamento])=MONTH(EDATE(TODAY(),-2)))*tblPagamentos[Valor Recebido])","v":{"$error":"#VALUE!"}},{"$f":"SUMPRODUCT((YEAR(tblDespesas[Data])=YEAR(EDATE(TODAY(),-2)))*(MONTH(tblDespesas[Data])=MONTH(EDATE(TODAY(),-2)))*tblDespesas[Valor])","v":0},null,null,{"$f":"Cálculos!D17","v":""},{"$f":"Cálculos!L17","v":0}]
[{"$nulls":14},{"$f":"TEXT(EDATE(TODAY(),-1),\"mmm/aa\")","v":"Jul/aa"},{"$f":"SUMPRODUCT((YEAR(tblPagamentos[Data Pagamento])=YEAR(EDATE(TODAY(),-1)))*(MONTH(tblPagamentos[Data Pagamento])=MONTH(EDATE(TODAY(),-1)))*tblPagamentos[Valor Recebido])","v":{"$error":"#VALUE!"}},{"$f":"SUMPRODUCT((YEAR(tblDespesas[Data])=YEAR(EDATE(TODAY(),-1)))*(MONTH(tblDespesas[Data])=MONTH(EDATE(TODAY(),-1)))*tblDespesas[Valor])","v":0}]
[{"$nulls":14},{"$f":"TEXT(EDATE(TODAY(),0),\"mmm/aa\")","v":"Aug/aa"},{"$f":"SUMPRODUCT((YEAR(tblPagamentos[Data Pagamento])=YEAR(EDATE(TODAY(),0)))*(MONTH(tblPagamentos[Data Pagamento])=MONTH(EDATE(TODAY(),0)))*tblPagamentos[Valor Recebido])","v":{"$error":"#VALUE!"}},{"$f":"SUMPRODUCT((YEAR(tblDespesas[Data])=YEAR(EDATE(TODAY(),0)))*(MONTH(tblDespesas[Data])=MONTH(EDATE(TODAY(),0)))*tblDespesas[Valor])","v":0}]